Workbook

Sheet Sheet2
A1: 贵州省残疾人联合会直属事业单位2025年公开招聘工作人员 总成绩及进入体检人员名单
A2: 序号 | B2: 姓名 | C2: 报考单位及代码 | D2: 准考证号 | E2: 报考岗位类别及代码 | F2: 笔试成绩（折算百分制后） | G2: 笔试折算成绩（40%） | H2: 面试成绩（折算百分制后） | I2: 面试折算成绩(60%) | J2: 总成绩 | K2: 是否进入体检 | L2: 备注
A3: 1 | B3: 王化茂 | C3: 5801贵州省残疾人康复中心 | D3: 3152281401422 | E3: 22828580101信息化管理 | F3: 61 | G3: =F3*0.4 -> 24.40 | H3: 87.33 | I3: =H3*0.6 -> 52.398 | J3: =I3+G3 -> 76.798 | K3: 是
A4: 2 | B4: 闵爱琴 | C4: 5801贵州省残疾人康复中心 | D4: 3152281406020 | E4: 22828580101信息化管理 | F4: 58.33 | G4: =F4*0.4 -> 23.33 | H4: 82.66 | I4: =H4*0.6 -> 49.596 | J4: =I4+G4 -> 72.926 | K4: 否
A5: 3 | B5: 关转义 | C5: 5801贵州省残疾人康复中心 | D5: 3152281401908 | E5: 22828580101信息化管理 | F5: 57.83 | G5: =F5*0.4 -> 23.13 | H5: 77.01 | I5: =H5*0.6 -> 46.206 | J5: =I5+G5 -> 69.336 | K5: 否
A6: 4 | B6: 崔洁 | C6: 5802贵州省康复医院 | D6: 5252281503507 | E6: 22828580203康复医师3 | F6: 55.17 | G6: =F6*0.4 -> 22.07 | H6: 85.8 | I6: =H6*0.6 -> 51.48 | J6: =G6+I6 -> 73.55 | K6: 是
A7: 5 | B7: 王虹先 | C7: 5802贵州省康复医院 | D7: 5252281500609 | E7: 22828580203康复医师3 | F7: 55.07 | G7: 22.03 | H7: 83.4 | I7: 50.04 | J7: 72.07 | K7: 否
A8: 6 | B8: 熊信梅 | C8: 5802贵州省康复医院 | D8: 5252281503312 | E8: 22828580203康复医师3 | F8: 54.43 | G8: 21.77 | H8: 76 | I8: 45.6 | J8: 67.37 | K8: 否
A9: 7 | B9: 刘玲宇 | C9: 5802贵州省康复医院 | D9: 5252281504007 | E9: 22828580207神经内科医师2 | F9: 62.4 | G9: 24.96 | H9: 77.2 | I9: 46.32 | J9: 71.28 | K9: 是
A10: 8 | B10: 杨会 | C10: 5802贵州省康复医院 | D10: 5252281503511 | E10: 22828580207神经内科医师2 | F10: 59.17 | G10: 23.67 | H10: 77.2 | I10: 46.32 | J10: 69.99 | K10: 否
A11: 9 | B11: 王敏 | C11: 5802贵州省康复医院 | D11: 5252281500612 | E11: 22828580207神经内科医师2 | F11: 56.47 | G11: 22.59 | H11: 69.2 | I11: 41.52 | J11: 64.11 | K11: 否

Sheet Sheet1
A1: 贵州省残疾人联合会直属事业单位2023年公开招聘事业单位工作人员 总成绩及进入体检人员名单
A2: 序号 | B2: 姓名 | C2: 报考单位名称 及代码 | D2: 报考岗位类别及代码 | E2: 准考证号码 | F2: 笔试成绩（折算百分制后） | H2: 笔试折算成绩（40%） | I2: 面试成绩 | K2: 面试折算成绩(60%) | L2: 总成绩 | M2: 是否进入体检 | N2: 备注
A3: 1 | B3: 曾居义 | C3: 3701贵州省康复医院 | D3: 22828370101内科医师 | E3: 5252280406508 | F3: 54.9 | G3: 0.40 | H3: =F3*G3 -> 21.96 | I3: 79.00 | J3: 0.60 | K3: =I3*J3 -> 47.4 | L3: =H3+K3 -> 69.36 | M3: 是
A4: 2 | B4: 江剑 | C4: 3701贵州省康复医院 | D4: 22828370101内科医师 | E4: 5252280406502 | F4: 51.9 | G4: 0.40 | H4: 20.76 | I4: 84.20 | J4: 0.60 | K4: 50.52 | L4: 71.28 | M4: 否 | N4: 面试 缺考
A5: 3 | B5: 田辽 | C5: 3701贵州省康复医院 | D5: 22828370101内科医师 | E5: 5252280406520 | F5: 46.93 | G5: 0.40 | H5: 18.77 | I5: 76.40 | J5: 0.60 | K5: 45.84 | L5: 64.61 | M5: 是
A6: 4 | B6: 喻作宪 | C6: 3701贵州省康复医院 | D6: 22828370103内科医师 | E6: 5252280406509 | F6: 61.3 | G6: 0.40 | H6: 24.52 | I6: 83.20 | J6: 0.60 | K6: 49.92 | L6: 74.44 | M6: 否
A7: 5 | B7: 林亚运 | C7: 3701贵州省康复医院 | D7: 22828370103内科医师 | E7: 5252280406504 | F7: 58.33 | G7: 0.40 | H7: 23.33 | I7: 75.80 | J7: 0.60 | K7: 45.48 | L7: 68.81 | M7: 是
A8: 6 | B8: 张娟 | C8: 3701贵州省康复医院 | D8: 22828370103内科医师 | E8: 5252280406506 | F8: 56.67 | G8: 0.40 | H8: 22.67 | I8: 86.00 | J8: 0.60 | K8: 51.6 | L8: 74.27 | M8: 否
A9: 7 | B9: 王梅 | C9: 3701贵州省康复医院 | D9: 22828370103内科医师 | E9: 5252280406518 | F9: 52.8 | G9: 0.40 | H9: 21.12 | I9: 76.40 | J9: 0.60 | K9: 45.84 | L9: 66.96 | M9: 否
A10: 8 | B10: 雷艳 | C10: 3701贵州省康复医院 | D10: 22828370109中医康复科医师 | E10: 5152280405825 | F10: 60.03 | G10: 0.40 | H10: 24.01 | I10: 81.00 | J10: 0.60 | K10: 48.6 | L10: 72.61 | M10: 是
A11: 9 | B11: 马佳宏 | C11: 3701贵州省康复医院 | D11: 22828370109中医康复科医师 | E11: 5152280405810 | F11: 57.4 | G11: 0.40 | H11: 22.96 | I11: 79.40 | J11: 0.60 | K11: 47.64 | L11: 70.60 | M11: 否
A12: 10 | B12: 杨桂平 | C12: 3701贵州省康复医院 | D12: 22828370109中医康复科医师 | E12: 5152280405802 | F12: 55.93 | G12: 0.40 | H12: 22.37 | I12: 80.20 | J12: 0.60 | K12: 48.12 | L12: 70.49 | M12: 否
A13: 11 | B13: 蔡雨若 | C13: 3701贵州省康复医院 | D13: 22828370109中医康复科医师 | E13: 5152280405822 | F13: 54.3 | G13: 0.40 | H13: 21.72 | I13: 79.80 | J13: 0.60 | K13: 47.88 | L13: 69.60 | M13: 是
A14: 12 | B14: 何孟清 | C14: 3701贵州省康复医院 | D14: 22828370109中医康复科医师 | E14: 5152280405811 | F14: 54.03 | G14: 0.40 | H14: 21.61 | I14: 77.40 | J14: 0.60 | K14: 46.44 | L14: 68.05 | M14: 是
A15: 13 | B15: 任华山 | C15: 3701贵州省康复医院 | D15: 22828370109中医康复科医师 | E15: 5152280405824 | F15: 53.67 | G15: 0.40 | H15: 21.47 | I15: 69.60 | J15: 0.60 | K15: 41.76 | L15: 63.23 | M15: 是
A16: 14 | B16: 喻珊 | C16: 3701贵州省康复医院 | D16: 22828370111康复治疗部技师 | E16: 5552280406115 | F16: 63.2 | G16: 0.40 | H16: 25.28 | I16: 80.60 | J16: 0.60 | K16: 48.36 | L16: 73.64 | M16: 否
A17: 15 | B17: 文嘉 | C17: 3701贵州省康复医院 | D17: 22828370111康复治疗部技师 | E17: 5552280406023 | F17: 57.07 | G17: 0.40 | H17: 22.83 | I17: 80.20 | J17: 0.60 | K17: 48.12 | L17: 70.95 | M17: 否
A18: 16 | B18: 郑艳 | C18: 3701贵州省康复医院 | D18: 22828370111康复治疗部技师 | E18: 5552280406025 | F18: 56.37 | G18: 0.40 | H18: 22.55 | I18: 84.80 | J18: 0.60 | K18: 50.88 | L18: 73.43 | M18: 否
A19: 17 | B19: 姚伦佳 | C19: 3701贵州省康复医院 | D19: 22828370111康复治疗部技师 | E19: 5552280405924 | F19: 56.07 | G19: 0.40 | H19: 22.43 | I19: 76.40 | J19: 0.60 | K19: 45.84 | L19: 68.27 | M19: 否
A20: 18 | B20: 彭佳佳 | C20: 3701贵州省康复医院 | D20: 22828370111康复治疗部技师 | E20: 5552280406016 | F20: 55.97 | G20: 0.40 | H20: 22.39 | I20: 86.20 | J20: 0.60 | K20: 51.72 | L20: 74.11 | M20: 否
A21: 19 | B21: 徐凤 | C21: 3701贵州省康复医院 | D21: 22828370111康复治疗部技师 | E21: 5552280406012 | F21: 55.67 | G21: 0.40 | H21: 22.27 | I21: 69.00 | J21: 0.60 | K21: 41.4 | L21: 63.67 | M21: 否 | N21: 面试 缺考
